{"text_format":"1","workbook":"xlsx","n_sheets":6,"sheets":["Instrucciones","TEST - BUP","TEST- ANGE","Hoja1","IndicesIPC","Hoja2"],"not_rendered":{"charts":0,"images":5,"macros":1,"external_links":0,"defined_names":78,"comments":0,"pivot_tables":0},"unopened":[],"bounds":{"document_bytes":16777216,"sheet_cells":100000,"rows_first":2000,"rows_last":500,"rows_between":2000,"halvings":0,"cell_chars":16384,"cell_head_chars":4096},"cells_cut":0,"cells_raw":0,"read":"whole","date_system":"1900"}

{"sheet":"Instrucciones","index":0,"n_rows":48,"n_cols":3,"rows_kept":48,"cut":false,"hidden":false,"merged":[[16,1,16,2],[30,1,30,2],[33,1,33,2],[43,1,43,2],[32,1,32,2],[31,1,31,2],[29,1,29,2],[28,1,28,2],[2,1,2,2],[4,1,4,2],[15,1,15,2],[12,1,12,2],[14,1,14,2],[13,1,13,2],[11,1,11,2]]}
[]
[]
[null,"INSTRUCCIONES PARA EL DILIGENCIAMIENTO DEL GADF-F-091 TEST DE INDICIOS DE DETERIORO DEL VALOR DE LOS ACTIVOS ASOCIADOS Al\nMODO DE TRANSPORTE CARRETERO"]
[]
[null,"Diligencie el Test de los Bienes de usos público (Test BUP) y el Test de Activos no generadores de efectivo (Test ANGE) para las Propiedades, planta y equipos y activos intangibles que se consideren materiales. Para cada Test detalle la siguiente información:"]
[null,"Contrato de Concesión No: ","Identificar el N.º del Contrato que se ha otorgado a la Concesión."]
[null,"Proyecto:","Indicar nombre completo del proyecto"]
[null,"Concesionario:","Indicar La Razón Social"]
[null,"NIT:","Diligenciar el número de identificación tributaria NIT del concesionario"]
[null,"Fecha de evaluación ","Diligenciar la fecha de elaboración del test, la cual debe corresponder al último día del año (31/12/20XX) o a la fecha en la cual se evidencio el indico de deterioro. "]
[]
[null,"TEST BIENES USOS PÚBLICOS-BUP"]
[null,"FASE 1-TEST"]
[null,"La fase 1 del test de deterioro de bienes de uso público se realizará de manera global para la totalidad de los activos de bienes de uso público (Infraestructura en servicio, en construcción), es decir, un (1) test que comprenda todas las clasificaciones. Contestar todas las preguntas seleccionando Sí o No, según corresponda, en caso de que todas las respuestas sean \"NO\", se concluirá que no se presentan indicios de deterioro y habrá finalizado el diligenciamiento del test.\nEn caso que alguna de las preguntas tenga una respuesta afirmativa valor \"SI\", se indicará valor \"SÍ\" en la casilla \"INDICIO\" y se deberá diligenciar la fase 2 del test."]
[null,"FASE 2- INFORMACIÓN PARA LA COMPROBANCIÓN DE DETERIOR DE VALOR"]
[null,"En este cuadro se debe diligenciar la información de manera particular por unidad de activo, indicando los datos del activo al que se le identificó algún(os) indicio(s) de deterioro. "]
[null,"En caso de presentar indicios de deterioro se requiere que el concesionario allegue a la Agencia como evidencia para documentar y soportar la existencia de indicios del deterioro de valor, según aplique: i) opiniones de experto, a través de informes que documenten las evidencias del indicio de deterioro de valor de los activos Bienes de uso público y Activos no generadores de efectivo; ii) planos, fotografías, videos o declaraciones del personal acerca de la situación operativa de los activos cuyo deterioro físico se pretende probar; iii) indicadores de gestión; iv) y demás -soportes que la Agencia considere pertinentes para demostrar el referido deterioro."]
[null,"Estado: ","Corresponde a la etapa en la cual se Encuentra el activo ya sea \"en construcción\" y/o \"En servicio\""]
[null,"Activo\n","Seleccione la clasificación a la cual corresponde el activo de infraestructura de transporte que presenta indicios de deterioro de valor. "]
[null,"Detalle de activo:","Describir con mayor detalle la unidad de activo a la que se le identifico el indicio de deterioro"]
[null,"Proporción  de la parte dañada (%)","Si se conoce la proporción o porcentaje (%) de la parte dañada con relación al activo total que presenta daño físico o perdida de la capacidad para prestar servicios, indique lo, de lo contrario no diligencie la casilla."]
[null,"Fecha puesta en Servicio/ operación\n(dd/mm/aaaa)","Indique la fecha completa de puesta en servicios u operación del activo de infraestructura que presenta indicios de deterioro, tomando como base el Formato."]
[null,"Valor de la inversión inicial  (COP):","Indique el valor del activo."]
[null,"Indicio de deterioro fue identificado en el activo","Seleccionar el valor \"SI\" o \"NO\" de acuerdo a las opciones indicadas o en ambas según aplique."]
[null,"Costo de reposición: ","Está determinado por el costo en que se incurriría en una fecha determinada para reponer la capacidad operativa del activo existente. Indique el valor en pesos colombianos"]
[null,"Costo de rehabilitación","Está determinado por el costo en que se incurrirá para realizar intervenciones que restablezcan las condiciones operativas de la infraestructura o equipo.  Indique el valor en pesos colombianos"]
[null,"PARTE 4 - FOTOGRAFIAS DEL PROYECTO","Incluir el registro fotográfico que de cuenta del estado en que se encuentra activo que presenta indicios de deterioro. "]
[]
[null,"TEST ACTIVOS NO GENERADORES DE EFECTIVO -ANGE"]
[null,"FASE 1-TEST"]
[null,"La fase 1 del test de deterioro de activos no generadores de efectivo se realizará únicamente cuando se supere el umbral de materialidad establecido por la Agencia. Este test, deberá diligenciarse de manera global (para la totalidad de las propiedades, planta y equipo y, sistemas (Intangibles)), es decir, un (1) test que comprenda todas las clasificaciones. Contestar todas las preguntas seleccionando Sí o No, según corresponda, en caso de que todas las respuestas sean \"NO\", se concluirá que no se presentan indicios de deterioro y habrá finalizado el diligenciamiento del test.\nEn caso de que alguna de las preguntas tenga una respuesta afirmativa valor \"SI\", se indicará valor \"SÍ\" en la celda \"INDICIO\" y se debe pasar a la fase 2 del test."]
[null," FASE 2 - INFORMACIÓN PARA LA DETERMINACIÓN DEL VALOR DEL SERVICIO RECUPERABLE"]
[null,"En este cuadro se debe diligenciar la información de manera particular por unidad de activo al que se le identificó algún(os) indicio(s) de deterioro. "]
[null,"En caso de presentar indicios de deterioro se requiere que el concesionario allegue a la Agencia como evidencia para documentar y soportar la existencia de indicios del deterioro de valor, según aplique: i) opiniones de experto, a través de informes que documenten las evidencias del indicio de deterioro de valor de los activos bienes de uso público y Activos no generadores de efectivo; ii) planos, fotografías, videos o declaraciones del personal acerca de la situación operativa de los activos cuyo deterioro físico se pretende probar; iii) indicadores de gestión; iv) y demás -soportes que la Agencia considere pertinentes para demostrar el referido deterioro."]
[null,"Tipo de Activo","De la lista desplegable, seleccione el tipo de activo que presenta indicios de deterioro de valor ya sea Propiedades, planta y equipos o intangibles."]
[null,"Clasificación del activo","De la lista desplegable, la clasificación del activo que presenta indicios de deterioro de valor, , tomando como base el formato GCSP-F-301."]
[null,"Detalle de activo","Describir con mayor detalle la unidad de activo a la que se le identifico el indicio de deterioro, tomando como base el formato GCSP-F-301."]
[null,"Valor del activo/Valor de la inversión inicial ","Indique el valor del activo o valor de la inversión de Propiedades, planta y equipos e intangible que presenta indicios de deterioro, tomando como base la información contenida en el formato GCSP-F-301."]
[null,"Fecha puesta en Servicio/ operación:\n(dd/mm/aaaa)","Indique la fecha completa de puesta en servicios u operación de activo de Propiedades, planta y equipos e intangible que presenta indicios de deterioro, tomando como base la información contenida en el formato GCSP-F-301."]
[null,"Indicio de deterioro fue identificado en el activo (Interno/Externo)","Seleccionar el valor \"SI\" o \"NO\" de acuerdo a las opciones indicadas o en ambas según aplique."]
[null,"Información para la determinación del valor del servicio recuperable (COP)","Indique los datos de costo de reposición, costo de rehabilitación, valor de mercado si existiere y los costos de disposición. Con los datos indicados, la Agencia determinará si existe lugar al deterioro de activos. "]
[null,"Valor Costo de Reposición (COP)","Si \"Aplica\", Indique el valor en el que se incurriría en una fecha determinada para reponer la capacidad operativa del activo existente, caso contrario no diligenciar. "]
[null,"Valor Costo de Rehabilitación (COP)","Si \"Aplica\", Indique el valor en el que se incurriría en una fecha determinada para reponer la capacidad operativa del activo existente, caso contrario no diligenciar. "]
[null,"Valor de mercado:"]
[null," Existiere Valor de Mercado","Indique \"SI\" o \"NO\" según aplique "]
[null,"Valor de Mercado (COP)","Si \"Aplica\" valor de mercado, indique el valor por el cual el activo puede ser intercambiado en una transacción realizada en condiciones de independencia mutua. Determinado mediante proveedores de precios, de una entidad pública o privada o de una persona con la idoneidad necesaria para establecer precios.  "]
[null,"Costo de disposición","Si \"Aplica\", indique el valor costos de carácter legal, timbres y otros impuestos, costos de desplazar los activos, los costos de desmantelamientos, comisión de intermediarios en la venta de activos (remates), entre otros, en los que se incurre para dejar el activo en condiciones para la venta. "]
[null,"PARTE 4 - FOTOGRAFIAS DEL PROYECTO","Incluir el registro fotográfico que de cuenta del estado en que se encuentra activo que presenta indicios de deterioro. "]

{"sheet":"TEST - BUP","index":1,"n_rows":25,"n_cols":30,"rows_kept":25,"cut":false,"hidden":false,"merged":[[24,1,24,13],[26,1,40,7],[26,9,40,13],[42,1,56,7],[42,9,56,13],[58,1,72,7],[58,9,72,13],[5,13,6,13],[5,7,6,7],[5,8,6,8],[5,9,6,9],[5,10,6,11],[5,12,6,12],[15,3,16,5],[17,3,17,5],[18,7,18,8],[15,13,16,13],[15,1,16,1],[15,12,16,12],[15,10,15,11],[15,6,16,6],[22,3,22,5],[20,7,20,8],[21,7,21,8],[22,7,22,8],[8,12,8,13],[9,12,10,13],[11,12,12,13],[12,1,12,9],[19,7,19,8],[18,3,18,5],[19,3,19,5],[14,1,14,13],[17,7,17,8],[15,2,16,2],[5,19,5,22],[20,3,20,5],[21,3,21,5],[15,9,16,9],[15,7,16,8],[8,1,8,10],[9,1,9,10],[10,1,10,10],[11,1,11,9],[4,5,4,6],[5,1,6,1],[5,2,6,3],[1,2,1,13],[3,8,3,10],[3,4,3,6],[3,2,3,3],[2,2,2,13],[3,12,3,13],[5,4,6,4],[5,5,6,6]]}
[]
[null,null,"TEST DE INDICIOS DE DETERIORO DEL VALOR DE LOS ACTIVOS ASOCIADOS Al\nMODO DE TRANSPORTE CARRETERO",null,null,null,null,null,null,null,null,null,null,null,null,null,"En contrucción","Red de carretera"]
[null,null,"GESTIÓN ADMINISTRATIVA Y FINANCIERA",null,null,null,null,null,null,null,null,null,null,null,null,null,"En servicio","Terrenos"]
[null,null,"CÓDIGO",null,"GADF-F-091",null,null,"VERSIÓN","003",null,null,"FECHA","2025-01-23"]
[]
[null,"Proyecto de concesión",null,null,"Contrato de Concesión",null,null,"NIT",null,"Concesionario",null,null,"Fecha de evaluación ",null,null,null,null,null,null,"2024-12-31"]
[]
[]
[null,"FASE 1  -  TEST",null,null,null,null,null,null,null,null,null,null,"INDICIO"]
[null,"Contestar todas las preguntas de acuerdo al estado de los activos correspondientes a Bienes de Uso Público: Infraestructura y/o terrenos en construcción y/o en servicio.",null,null,null,null,null,null,null,null,null,null,"Si alguna de las respuestas fue afirmativa, se considera que SI existe indicio de deterioro.",null,null,null,null,null,null,null,null,null,null,null,null,"Anexo",null,null,null,"ANI"]
[null,"Indicios de deterioro por daños físicos o capacidad de prestación de servicio",null,null,null,null,null,null,null,null,null,null,null,null,null,null,null,null,null,null,null,null,null,null,null,"2.INFRAESTRUCTURA EN CONSTRUCCION"]
[null,"¿Se dispone de evidencia de deterioro  físico grave, severo o de gran magnitud originado en factores extraordinarios (diferentes al desgaste del activos por el uso en el tiempo) en la infraestructura de transporte y, no se espera su reparación en un periodo inferior a 12 meses? ",null,null,null,null,null,null,null,null,"NO",null,{"$f":"+IF(AND(K12=\"NO\",K13=\"NO\"),\"NO\",\"SI\")","v":"NO"},null,null,null,null,null,null,null,null,null,null,null,null,"4.DRAGADOS - CAPITAL"]
[null,"Se dispone de evidencia que permita determinar que el activo ha perdido significativamente su capacidad para prestar servicios, (por ejemplo, como consecuencia del daño presentado se debió ordenar el cierre total para el servicio de la infraestructura) originado en daño físico grave o severo, a largo plazo (más de 12 meses)?",null,null,null,null,null,null,null,null,"NO"]
[]
[null,"FASE  2   -  INFORMACIÓN PARA LA DETERMINACION DEL VALOR DEL SERVICIO RECUPERABLE"]
[null,"Estado","Activo","Detalle de activo",null,null,"Proporción  de la parte dañada (%)","Fecha puesta en Servicio/ operación\n(dd/mm/aaaa)",null,"Valor de la inversión inicial  (COP)","Indicio de deterioro fue identificado en el activo",null,"Costo de reposición ","Costo de rehabilitación"]
[null,null,null,null,null,null,null,null,null,null,"Daños físicos ","Pérdida en capacidad de prestación de servicios"]
[]
[]
[]
[]
[]
[]
[]
[null,"PARTE 4 - FOTOGRAFIAS DEL PROYECTO"]

{"sheet":"TEST- ANGE","index":2,"n_rows":110,"n_cols":31,"rows_kept":110,"cut":false,"hidden":false,"merged":[[66,12,112,22],[66,1,80,10],[5,15,6,18],[5,19,6,20],[5,21,6,22],[32,1,32,22],[34,1,48,10],[34,12,48,22],[18,3,20,3],[5,1,6,2],[5,3,6,4],[5,5,6,6],[5,7,6,8],[5,9,6,10],[5,11,6,12],[5,13,6,14],[1,2,1,22],[2,2,2,22],[3,19,3,22],[3,16,3,18],[3,2,3,4],[3,5,3,9],[3,10,3,12],[3,13,3,15],[25,21,25,22],[14,19,14,22],[16,1,17,22],[18,17,18,22],[19,20,19,22],[20,21,20,22],[14,10,14,16],[14,1,14,7],[19,8,20,8],[19,9,20,9],[19,10,20,10],[19,11,20,11],[19,12,20,12],[18,1,20,1],[18,4,20,4],[18,6,20,6],[18,2,20,2],[18,5,20,5],[18,15,19,16],[23,21,23,22],[24,21,24,22],[19,7,20,7],[21,21,21,22],[22,21,22,22],[18,13,19,14],[18,7,18,9],[18,10,18,12],[19,17,19,19],[8,1,8,22],[9,1,9,22],[11,19,11,22],[12,19,13,22],[13,10,13,16],[12,1,12,7],[13,1,13,7],[11,1,11,7],[12,10,12,16],[11,10,11,16],[50,1,64,10],[50,12,64,22],[26,21,26,22],[27,21,27,22],[28,21,28,22],[29,21,29,22],[30,21,30,22]]}
[]
[null,null,"TEST DE INDICIOS DE DETERIORO DEL VALOR DE LOS ACTIVOS ASOCIADOS AL\nMODO DE TRANSPORTE CARRETERO"]
[null,null,"GESTIÓN ADMINISTRATIVA Y FINANCIERA"]
[null,null,"CÓDIGO",null,null,"GADF-F-091",null,null,null,null,"VERSIÓN",null,null,3,null,null,"FECHA",null,null,{"$f":"'TEST - BUP'!M4","v":"2025-01-23"}]
[]
[null,"Proyecto de concesión",null,null,null,"Contrato de Concesión",null,null,null,"NIT",null,null,null,"Concesionario",null,null,null,null,null,"Fecha de evaluación "]
[]
[]
[null,"FASE 1  -  TEST"]
[null,"Contestar todas las preguntas de acuerdo al estado de los activos correspondientes a Activos no generadores de efectivo: Propiedades, planta y equipo y activos intangibles. \n\nActivos No Generadores de Efectivo: \nPropiedad Planta y Equipo: Muebles, Casetas y campamentos , Plantas de generación, Líneas y cables de transmisión, Líneas y cables de telecomunicaciones, Otras redes, líneas y cables, Equipo de centros de control, Otra maquinaria y equipo, Equipo de servicio ambulatorio, Muebles y enseres, Equipo de comunicación,  Equipo de computación, Satélites y antenas, Equipos de radares, Equipo de transporte , entre otros\nActivos intangibles: Software – concesiones y Licencias – concesiones\n\nPara los activos cuya capacidad de prestar servicios es = 0, no se debe realizar evaluación de indicios de deterioro, este activo debe darse de baja. \n"]
[]
[null,"Indicios de deterioro internos",null,null,null,null,null,null,"SI/NO",null,"Indicios de deterioro externos",null,null,null,null,null,null,"SI/NO",null,"INDICIO"]
[null,"¿Se identifican cambios significativos en el grado de utilización o la manera como se esperan usar las Propiedades, planta y equipo o intangibles  asociados al modo al acuerdo de concesión, los cuales afectarán desfavorablemente a largo plazo (más de 12 meses)?",null,null,null,null,null,null,"SI",null,"¿Durante el período, han tenido lugar, cambios significativos con una incidencia adversa sobre el uso del activo, relacionados con el entorno legal, económico, político y/o ambiental, que puedan afectar el normal funcionamiento de estos a largo plazo (más de 12 meses)?",null,null,null,null,null,null,"NO",null,"Si alguna de las respuestas fue afirmativa, se considera que SI existe indicio de deterioro."]
[null,"¿Existe evidencia de obsolescencia o deterioro físico de las propiedades, planta y equipo e intangibles que trae como consecuencia pérdida en el potencial del servicio recuperable y que puedan afectar el normal funcionamiento a largo plazo (más de 12 meses)?",null,null,null,null,null,null,"NO",null,"¿Durante el periodo, existen cambios significativos con efecto desfavorable para el bien  relacionados con el entorno tecnológico que sean de alto impacto, que puedan afectar el normal funcionamiento a largo plazo (más de 12 meses)?",null,null,null,null,null,null,"NO"]
[null,"¿Existe evidencia sobre pérdida en la capacidad de prestación de servicios que afecte el normal funcionamiento de las propiedades, planta y equipo e intangibles asociados al acuerdo de concesión, a largo plazo (más de 12 meses)?",null,null,null,null,null,null,"NO",null,"¿Durante el periodo, el valor de mercado del activo ha disminuido significativamente más que lo que se esperaría como consecuencia del paso del tiempo o de su uso normal del activo?",null,null,null,null,null,null,"NO",null,{"$f":"IF(I13=\"SI\",I13,IF(I14=\"SI\",I14,IF(I15=\"SI\",I15,IF(R13=\"SI\",R13,IF(R15=\"si\",R15,IF(R14=\"SI\",R14,\"NO\"))))))","v":"SI"}]
[null,null,null,null,null,null,null,null,null,null,null,null,null,null,null,null,null,null,null,null,null,null,null,null,null,"Listas",null,"Plantas de generación",null,null,"SI"]
[null,"FASE  2   -  INFORMACIÓN PARA LA DETERMINACION DEL VALOR DEL SERVICIO RECUPERABLE",null,null,null,null,null,null,null,null,null,null,null,null,null,null,null,null,null,null,null,null,null,null,null,"Propiedades, planta y equipo",null,"Líneas y cables de transmisión",null,null,"NO"]
[null,null,null,null,null,null,null,null,null,null,null,null,null,null,null,null,null,null,null,null,null,null,null,null,null,"Intangibles en concesión",null,"Líneas y cables de telecomunicaciones"]
[null,"Tipo de Activo","Clasificación del activo","Detalle de activo","Valor del activo/Valor de la inversión inicial \n(COP)","Depreciación acumulada\n(COP)","Fecha puesta en Servicio/ operación\n(dd/mm/aaaa)"," Indicio de deterioro interno identificado en el activo",null,null," Indicio de deterioro externo identificado en el activo",null,null,"Costo de reposición a nuevo ajustado\n",null,"Costo de reposición a nuevo ajustado y rehabilitación\n",null,"Valor de mercado menos costos de disposición",null,null,null,null,null,null,null,null,null,"Otras redes, líneas y cables"]
[null,null,null,null,null,null,null,"¿Se identifican cambios significativos en el grado de utilización o la manera como se esperan usar las\" PPYE\" o los \"AI\", los cuales afectarán desfavorablemente a largo plazo?","¿Existe evidencia de obsolescencia o deterioro físico de las Propiedades, planta y equipo o intangibles  concesionados que trae como consecuencia pérdida en el potencial del servicio y que afectan el normal funcionamiento a largo plazo ?","¿Existe evidencia sobre pérdida en la capacidad de prestación de servicios que afecte el normal funcionamiento, a largo plazo?","¿Durante el periodo, han tenido lugar, cambios significativos con una incidencia adversa sobre el uso del activo, relacionados con el entorno legal, económico, político y/o ambiental?","¿Durante el periodo, existen cambios significativos con efecto desfavorable para el bien  relacionados con el entorno tecnológico que sean de alto impacto?","¿Durante el periodo, el valor de mercado del activo ha disminuido significativamente más que lo que se esperaría como consecuencia del paso del tiempo o de su uso normal del activo?",null,null,null,null,"Valor de mercado",null,null,"Costo de disposición",null,null,null,null,null,null,"Equipo de centros de control"]
[null,null,null,null,null,null,null,null,null,null,null,null,null,"Aplica","Valor Costo de Reposición (COP)","Aplica","Valor Costo de Rehabilitación (COP)"," Existiere Valor de Mercado","Aplica","Valor de Mercado (COP)","Aplica","Valor Costo de disposición (COP)",null,null,null,null,null,"Equipo de seguridad y rescate"]
[null,null,null,null,null,null,null,null,null,null,null,null,null,{"$f":"+IF(OR($H22=$N$16,$I22=$N$16,$J22=$N$16,$K22=$N$16,$L22=$N$16,$M22=$N$16),\"Aplica\",\"N/A\")","v":"Aplica"},null,{"$f":"+IF(OR($I22=$N$16,$H22=$N$16),\"Aplica\",\"N/A\")","v":"Aplica"},null,null,{"$f":"+IF(OR($H22=$N$16,$I22=$N$16,$J22=$N$16,$K22=$N$16,$L22=$N$16,$M22=$N$16)*AND(R22=\"si\"),\"Aplica\",\"N/A\")","v":"N/A"},null,{"$f":"+IF(S22=\"Aplica\",\"Aplica\",\"N/A\")","v":"N/A"},null,null,null,null,null,null,"Otra maquinaria y equipo"]
[null,null,null,null,null,null,null,null,null,null,null,null,null,"Aplica",null,{"$f":"+IF(OR($I23=$N$16,$H23=$N$16),\"Aplica\",\"N/A\")","v":"Aplica"},null,null,"N/A",null,{"$f":"+IF(S23=\"Aplica\",\"Aplica\",\"N/A\")","v":"N/A"},null,null,null,null,null,null,"Equipo de servicio ambulatorio"]
[null,null,null,null,null,null,null,null,null,null,null,null,null,"Aplica",null,"Aplica",null,null,"N/A",null,"N/A",null,null,null,null,null,null,"Muebles y enseres"]
[null,null,null,null,null,null,null,null,null,null,null,null,null,"Aplica",null,"Aplica",null,null,"N/A",null,"N/A",null,null,null,null,null,null,"Equipo de comunicación"]
[null,null,null,null,null,null,null,null,null,null,null,null,null,"Aplica",null,"Aplica",null,null,"N/A",null,"N/A",null,null,null,null,null,null,"Equipo de computación"]
[null,null,null,null,null,null,null,null,null,null,null,null,null,"Aplica",null,"Aplica",null,null,"N/A",null,"N/A",null,null,null,null,null,null,"Satélites y antenas"]
[null,null,null,null,null,null,null,null,null,null,null,null,null,"Aplica",null,"Aplica",null,null,"N/A",null,"N/A",null,null,null,null,null,null,"Equipos de radares"]
[null,null,null,null,null,null,null,null,null,null,null,null,null,"Aplica",null,"Aplica",null,null,"N/A",null,"N/A",null,null,null,null,null,null,"Equipo de transporte - Terrestre"]
[null,null,null,null,null,null,null,null,null,null,null,null,null,"Aplica",null,"Aplica",null,null,"N/A",null,"N/A",null,null,null,null,null,null,"Equipo de transporte - De Elevación"]
[null,null,null,null,null,null,null,null,null,null,null,null,null,"Aplica",null,"Aplica",null,null,"N/A",null,"N/A",null,null,null,null,null,null,"Software - concesiones"]
[null,null,null,null,null,null,null,null,null,null,null,null,null,null,null,null,null,null,null,null,null,null,null,null,null,null,null,"Licencias - concesiones"]
[null,"PARTE 4 - FOTOGRAFIAS DE LOS ACTIVOS NO GENERADORES DE EFECTIVO OBJETO DE DETERIORO (PP&E)"]
[]
[]
[]
[]
[]
[]
[]
[]
[]
[]
[]
[]
[]
[]
[]
[]
[]
[]
[]
[]
[]
[]
[]
[]
[]
[]
[]
[]
[]
[]
[]
[]
[]
[]
[]
[]
[]
[]
[]
[]
[]
[]
[]
[]
[]
[]
[]
[]
[]
[null,null,null,null,null,2020]
[null,null,null,null,null,2021]
[null,null,null,null,null,2022]
[null,null,null,null,null,2023]
[null,null,null,null,null,2024]
[null,null,null,null,null,2025]
[null,null,null,null,null,2026]
[null,null,null,null,null,2027]
[null,null,null,null,null,2028]
[null,null,null,null,null,2029]
[null,null,null,null,null,2030]
[null,null,null,null,null,2031]
[null,null,null,null,null,2032]
[null,null,null,null,null,2033]
[null,null,null,null,null,2034]
[null,null,null,null,null,2035]
[null,null,null,null,null,2036]
[null,null,null,null,null,2037]
[null,null,null,null,null,2038]
[null,null,null,null,null,2039]
[null,null,null,null,null,2040]
[null,null,null,null,null,2041]
[null,null,null,null,null,2042]
[null,null,null,null,null,2043]
[null,null,null,null,null,2044]
[null,null,null,null,null,2045]
[null,null,null,null,null,2046]
[null,null,null,null,null,2047]

{"sheet":"Hoja1","index":3,"n_rows":31,"n_cols":5,"rows_kept":31,"cut":false,"hidden":true,"merged":[[0,2,0,3],[5,1,5,4],[11,1,11,4]]}
[null,null,"Clase"]
[null,"Anexo","PROPIEDADES.PLANTA.Y.EQUIPOS","SISTEMAS"]
[null,"P.P.Y.E","PROPIEDADES.PLANTA.Y.EQUIPOS","SISTEMAS.Activos.Intangibles"]
[null,"SISTEMAS"]
[]
[null,"ítem de inversión "]
[null,"PROPIEDADES.PLANTA.Y.EQUIPOS","SISTEMAS.Activos.Intangibles"]
[null,"Maquinaria.y.equipo","Activos.Intangibles"]
[null,"Equipos.de.transporte.tracción.y.elevación"]
[null,"Equipos.de.comunicación.y.computación"]
[]
[null,"Detalle de Ítem de Inversión\n"]
[null,"Maquinaria.y.equipo","Equipos.de.transporte.tracción.y.elevación","Equipos.de.comunicación.y.computación","Activos.Intangibles"]
[null,"Maquinaria industrial","Equipos de transporte Terrestre","Equipos de comunicación","Softwares - concesiones"]
[null,"Equipo para estaciones de bombeo","Equipo de transporte marítimo y fluvial","Equipos de computación","Activos intangibles en concesión"]
[null,"Equipo de centros de control","Equipo de tracción ","Otros equipos de comunicación y computación"]
[null,"Equipo de ayuda audiovisual","Equipos de elevación (grúas)"]
[null,"Equipo de seguridad y rescate"]
[null,"Otra maquinaria y equipo"]
[null,"Herramientas y accesorios"]
[]
[]
[null,null,"Enfoque","Aplica pregunta"]
[1,"¿Se identifican cambios significativos en el grado de utilización o la manera como se esperan usar las Propiedades, planta y equipo o intangibles  concesionados, los cuales afectarán desfavorablemente a largo plazo (más de 12 meses)?","Costo de reposición a nuevo ajustado","1,2,3, 4, 5 y 6"]
[2,"¿Existe evidencia de obsolescencia o deterioro físico de las Propiedades, planta y equipo o intangibles  concesionados que trae como consecuencia pérdida en el potencial del servicio recuperable y que puedan afectar el normal funcionamiento a largo plazo (más de 12 meses)?","Enfoque del costo de rehabilitación",2]
[3,"¿Existe evidencia sobre pérdida en la capacidad de prestación de servicios que afecte el normal funcionamiento de las Propiedades, planta y equipo o intangibles  concesionados, a largo plazo (más de 12 meses)?","Valor de mercado menos costos de disposición","1,2,3, 4, 5 y 6"]
[]
[null,"Indicios de deterioro externos"]
[4,"¿Durante el periodo, han tenido lugar, cambios significativos con una incidencia adversa sobre el uso del activo, relacionados con el entorno legal, económico, político y/o ambiental?"]
[5,"¿Durante el periodo, existen cambios significativos con efecto desfavorable para el bien  relacionados con el entorno tecnológico que sean de alto impacto?"]
[6,"¿Durante el periodo, el valor de mercado del activo ha disminuido significativamente más que lo que se esperaría como consecuencia del paso del tiempo o de su uso normal del activo?"]

{"sheet":"IndicesIPC","index":4,"n_rows":26,"n_cols":26,"rows_kept":26,"cut":false,"hidden":true,"merged":[[25,0,25,6],[0,0,0,19],[2,0,3,19],[4,0,4,19],[23,0,23,7],[24,0,24,7]]}
[]
[]
["Total, Indice de Precios al Consumidor (IPC)"]
[]
["Índices - Serie de empalme\n2003 - 2021"]
[]
[]
[null,null,null,null,null,null,null,null,null,null,null,null,null,null,null,null,null,null,null,"Base Diciembre de 2018 = 100,00"]
["Mes",2003,2004,2005,2006,2007,2008,2009,2010,2011,2012,2013,2014,2015,2016,2017,2018,2019,2020,2021]
["Enero",50.42,53.54,56.45,59.02,61.8,65.510000000000005,70.209999999999994,71.69,74.12,76.75,78.28,79.95,83,89.19,94.07,97.53,100.6,104.24,105.91]
["Febrero",50.98,54.18,57.02,59.41,62.53,66.5,70.8,72.28,74.569999999999993,77.22,78.63,80.45,83.96,90.33,95.01,98.22,101.18,104.94,106.58]
["Marzo",51.51,54.71,57.46,59.83,63.29,67.040000000000006,71.150000000000006,72.459999999999994,74.77,77.31,78.790000000000006,80.77,84.45,91.18,95.46,98.45,101.62,105.53,107.12]
["Abril",52.1,54.96,57.72,60.09,63.85,67.510000000000005,71.38,72.790000000000006,74.86,77.42,78.989999999999995,81.14,84.9,91.63,95.91,98.91,102.12,105.7,107.76]
["Mayo",52.36,55.17,57.95,60.29,64.05,68.14,71.39,72.87,75.069999999999993,77.66,79.209999999999994,81.53,85.12,92.1,96.12,99.16,102.44,105.36,108.84,null,5,{"$f":"+V14*12","v":60},{"$f":"+V15/W14","v":1533333.3333333333},{"$f":"+X14*W15","v":1585061.2943077069}]
["Junio",52.33,55.51,58.18,60.48,64.12,68.73,71.349999999999994,72.95,75.31,77.72,79.39,81.61,85.21,92.54,96.23,99.31,102.71,104.97,108.78,null,92000000,{"$f":"+(T15/S19)","v":1.0337356267224176},{"$f":"+X14*9","v":13800000}]
["Julio",52.26,55.49,58.21,60.73,64.23,69.06,71.319999999999993,72.92,75.42,77.7,79.430000000000007,81.73,85.37,93.02,96.18,99.18,102.94,104.97,null,null,null,{"$f":"+V15*W15","v":95103677.65846242},{"$f":"+W16-X15","v":81303677.65846242},{"$f":"+W16/W14","v":1585061.2943077071},{"$f":"+Y16*9","v":14265551.648769364}]
["Agosto",52.42,55.51,58.21,60.96,64.14,69.19,71.349999999999994,73,75.39,77.73,79.5,81.900000000000006,85.78,92.73,96.32,99.3,103.03,104.96,null,null,null,null,null,null,{"$f":"+W16-Z16","v":80838126.009693056}]
["Septiembre",52.53,55.67,58.46,61.14,64.2,69.06,71.28,72.900000000000006,75.62,77.959999999999994,79.73,82.01,86.39,92.68,96.36,99.47,103.26,105.29,null,null,null,{"$f":"+V15-X15","v":78200000}]
["Octubre",52.56,55.66,58.6,61.05,64.2,69.3,71.19,72.84,75.77,78.08,79.52,82.14,86.98,92.62,96.37,99.59,103.43,105.23,null,null,null,null,null,{"$f":"+(V15-X15)*W15","v":80838126.009693056}]
["Noviembre",52.75,55.82,58.66,61.19,64.510000000000005,69.489999999999995,71.14,72.98,75.87,77.98,79.349999999999994,82.25,87.51,92.73,96.55,99.7,103.54,105.08]
["Diciembre",53.07,55.99,58.7,61.33,64.819999999999993,69.8,71.2,73.45,76.19,78.05,79.56,82.47,88.05,93.11,96.92,100,103.8,105.48]
[]
[]
["Fuente: DANE."]
["Nota: La diferencia en la suma de las variables, obedece al sistema de aproximación y redondeo."]
["Actualizado el 3 de julio de 2021"]

{"sheet":"Hoja2","index":5,"n_rows":9,"n_cols":2,"rows_kept":9,"cut":false,"hidden":true,"merged":[]}
[]
[null,"En construcción"]
[null,"En servicio"]
[]
[null,1]
[null,2]
[]
[null,"NO"]
[null,"SI"]